fUST/lending_fUST_20241006
["ID","MTS","AMOUNT","RATE_DAILY","PERIOD"]
[339925652,1728157515620,-500.0,0.00013673,2]
[339925653,1728157515676,-500.0,0.00013673,2]
[339925654,1728157515724,-500.93197883,0.00013673,2]
[339925655,1728157515774,-500.0,0.00013673,2]
[339925656,1728157515824,-500.0,0.00013673,2]
[339925657,1728157515880,-500.0,0.00013673,2]
[339925658,1728157515932,-500.0,0.00013673,2]
[339925659,1728157515982,-500.0,0.00013673,2]
[339925660,1728157516030,-429.92893177,0.00013673,2]
[339925661,1728157516079,-500.0,0.00013673,2]
[339925662,1728157516129,-500.0,0.00013673,2]
[339925663,1728157516183,-500.0,0.00013673,2]
[339925664,1728157516238,-500.0,0.00013673,2]
[339925665,1728157516289,-500.0,0.00013673,2]
[339925666,1728157516340,-369.96,0.00013673,2]
[339925667,1728157516396,-183.63078667,0.00013673,2]
[339925668,1728157516446,-500.0,0.00013673,2]
[339925669,1728157516498,-500.0,0.00013673,2]
[339925670,1728157516548,-500.0,0.00013673,2]
[339925671,1728157516600,-167.5,0.00013673,2]
[339925672,1728157516652,-500.0,0.00013673,2]
[339925673,1728157516707,-500.0,0.00013673,2]
[339925674,1728157516758,-500.0,0.00013673,2]
[339925675,1728157516815,-500.0,0.00013673,2]
[339925676,1728157516867,-500.0,0.00013673,2]
[339925677,1728157516925,-500.0,0.00013673,2]
[339925678,1728157516978,-161.2711602,0.00013673,2]
[339925679,1728157517032,-173.62398798,0.00013673,2]
[339925680,1728157517085,-500.0,0.00013673,2]
[339925681,1728157517138,-167.5,0.00013673,2]
[339925682,1728157517189,-503.34706846,0.00013673,2]
[339925683,1728157517240,-158.5,0.00013673,2]
[339925684,1728157517292,-500.0,0.00013673,2]
[339925685,1728157517344,-500.0,0.00013673,2]
[339925686,1728157517395,-500.0,0.00013673,2]
[339925687,1728157517460,-167.5,0.00013673,2]
[339925688,1728157517528,-500.0,0.00013673,2]
[339925689,1728157517586,-500.0,0.00013673,2]
[339925690,1728157517638,-500.0,0.00013673,2]
[339925691,1728157517690,-13440.4146193,0.00013674,2]
[339925692,1728157517743,-5513.34701789,0.00013674,2]
[339925693,1728157517798,-21304.7479511,0.00013674,2]
[339925694,1728157579454,1671.7257578,0.00010209,2]
[339925734,1728157831966,-667.044908,0.00012,2]
[339925735,1728157831977,-202.3496114,0.00012461,2]
[339925736,1728157831988,-165.106099,0.00012769,2]
[339925737,1728157831998,-306.0,0.00012877,2]
[339925738,1728157832008,-115.2192426,0.00012936,2]
[339925740,1728157832135,-49.8868564,0.00012936,2]
[339925742,1728157832147,-165.106099,0.00013102,2]
[339925745,1728157832158,-71.73779659,0.00013268,2]
[339925804,1728157837990,-93.36830241,0.00013268,2]
[339925806,1728157838002,-165.106099,0.00013435,2]
[339925807,1728157838011,-300.0,0.0001356,2]
[339925809,1728157838021,-300.0,0.0001356,2]
[339925811,1728157838032,-930.40675744,0.00013561,2]
[339925813,1728157838042,-2059.57327148,0.00013561,2]
[339925823,1728157838860,-6327.60871041,0.00013561,2]
[339925824,1728157838874,-29569.30144157,0.00013561,2]
[339925867,1728157839901,-4621.95770204,0.00013461,2]
[339925869,1728157839911,-191257.540991,0.00013561,2]
[339925871,1728157839920,-1548.44545189,0.00013561,2]
[339925873,1728157839929,-306.79506415,0.00013588,2]
[339925877,1728157839962,-693.20493585,0.00013588,2]
[339925879,1728157839972,-150.0,0.000136,2]
[339925880,1728157839983,-500.0,0.00013673,2]
[339925882,1728157839993,-500.0,0.00013673,2]
[339925884,1728157840002,-500.0,0.00013673,2]
[339925887,1728157840012,-500.0,0.00013673,2]
[339925889,1728157840021,-500.0,0.00013673,2]
[339925891,1728157840031,-500.0,0.00013673,2]
[339925892,1728157840040,-500.0,0.00013673,2]
[339925894,1728157840049,-165.98135536,0.00013673,2]
[339925896,1728157840059,-500.0,0.00013673,2]
[339925898,1728157840068,-501.00360095,0.00013673,2]
[339925899,1728157840077,-168.96,0.00013673,2]
[339925901,1728157840087,-308.24858825,0.00013673,2]
[339925903,1728157840096,-500.0,0.00013673,2]
[339925904,1728157840105,-500.0,0.00013673,2]
[339925905,1728157840114,-500.0,0.00013673,2]
[339925906,1728157840124,-500.0,0.00013673,2]
[339925907,1728157840134,-501.16814187,0.00013673,2]
[339925908,1728157840143,-500.0,0.00013673,2]
[339925909,1728157840153,-500.0,0.00013673,2]
[339925910,1728157840163,-13269.876225,0.00013678,2]
[339925911,1728157840172,-21879.9351751,0.00013678,2]
[339925912,1728157840181,-202.507,0.00013678,2]
[339925913,1728157840191,-378.599,0.00013678,2]
[339925914,1728157840200,-6662.70836713,0.00013679,2]
[339925915,1728157840211,-13269.876225,0.0001368,2]
[339925916,1728157840220,-21879.9351751,0.0001368,2]
[339925917,1728157840229,-13269.876225,0.0001368,2]
[339925918,1728157840240,-21879.9351751,0.0001368,2]
[339925919,1728157840250,-66349.3811249,0.00013684,2]
[339925920,1728157840259,-82623.13907452,0.00013684,2]
[339925921,1728157840272,-26776.53680148,0.00013684,2]
[339925922,1728157840282,-25061.63597524,0.00013687,2]
[339925923,1728157840292,-151.0,0.00013688,2]
[339925924,1728157840301,-151.0,0.00013688,2]
[339925925,1728157840310,-151.0,0.00013688,2]
[339925926,1728157840320,-151.0,0.00013688,2]
[339925927,1728157840330,-151.0,0.00013688,2]
[339925928,1728157840339,-151.0,0.00013688,2]
[339925929,1728157840348,-222.48336,0.00013688,2]
[339925930,1728157840358,-222.48336,0.00013688,2]
[339925931,1728157840367,-151.0,0.00013688,2]
[339925932,1728157840377,-707.661666,0.00013688,2]
[339925933,1728157840387,-151.0,0.00013688,2]
[339925934,1728157840396,-797.896737,0.00013688,2]
[339925935,1728157840407,-797.896737,0.00013688,2]
[339925936,1728157840418,-151.0,0.00013688,2]
[339925937,1728157840427,-151.0,0.00013688,2]
[339925938,1728157840436,-253.431214,0.00013688,2]
[339925939,1728157840446,-253.431214,0.00013688,2]
[339925940,1728157840456,-151.0,0.00013688,2]
[339925941,1728157840466,-151.0,0.00013688,2]
[339925942,1728157840476,-259.947184,0.00013688,2]
[339925943,1728157840486,-151.0,0.00013688,2]
[339925944,1728157840495,-259.947184,0.00013688,2]
[339925945,1728157840505,-997.752839,0.00013688,2]
[339925946,1728157840515,-997.752839,0.00013688,2]
[339925947,1728157840525,-151.0,0.00013688,2]
[339925948,1728157840534,-20790.98778629,0.00013688,2]
[339926025,1728157846001,-85368.02201371,0.00013688,2]
[339926027,1728157846011,-87519.7407006,0.00013688,2]
[339926028,1728157846021,-34517.61656157,0.0001369,2]
[339926030,1728157846031,-467.0,0.0001369,2]
[339926032,1728157846042,-151.0,0.0001369,2]
[339926034,1728157846051,-151.0,0.0001369,2]
[339926036,1728157846064,-185.793994,0.0001369,2]
[339926038,1728157846074,-185.793994,0.0001369,2]
[339926040,1728157846083,-151.0,0.0001369,2]
[339926042,1728157846093,-151.0,0.0001369,2]
[339926043,1728157846102,-151.0,0.0001369,2]
[339926045,1728157846112,-151.0,0.0001369,2]
[339926047,1728157846122,-151.0,0.0001369,2]
[339926049,1728157846132,-270.005584,0.0001369,2]
[339926051,1728157846142,-151.0,0.0001369,2]
[339926052,1728157846151,-151.0,0.0001369,2]
[339926054,1728157846161,-151.0,0.0001369,2]
[339926056,1728157846171,-222.48336,0.0001369,2]
[339926058,1728157846181,-222.48336,0.0001369,2]
[339926060,1728157846191,-151.0,0.0001369,2]
[339926061,1728157846202,-707.661666,0.0001369,2]
[339926063,1728157846212,-151.0,0.0001369,2]
[339926065,1728157846221,-797.896737,0.0001369,2]
[339926067,1728157846230,-151.0,0.0001369,2]
[339926069,1728157846239,-151.0,0.0001369,2]
[339926070,1728157846249,-151.0,0.0001369,2]
[339926072,1728157846260,-253.431214,0.0001369,2]
[339926074,1728157846271,-253.431214,0.0001369,2]
[339926076,1728157846281,-151.0,0.0001369,2]
[339926078,1728157846291,-684.142826,0.0001369,2]
[339926080,1728157846303,-220.431002,0.0001369,2]
[339926082,1728157846313,-220.431002,0.0001369,2]
[339926084,1728157846323,-153.800644,0.0001369,2]
[339926086,1728157846336,-151.0,0.0001369,2]
[339926088,1728157846346,-153.800644,0.0001369,2]
[339926090,1728157846356,-259.947184,0.0001369,2]
[339926092,1728157846367,-151.0,0.0001369,2]
[339926094,1728157846376,-151.0,0.0001369,2]
[339926096,1728157846387,-259.947184,0.0001369,2]
[339926097,1728157846397,-997.752839,0.0001369,2]
[339926099,1728157846407,-997.752839,0.0001369,2]
[339926101,1728157846416,-196.918011,0.0001369,2]
[339926103,1728157846426,-196.918011,0.0001369,2]
[339926104,1728157846435,-151.0,0.0001369,2]
[339926105,1728157846445,-798.67595127,0.0001369,2]
[339926106,1728157846454,-151.0,0.00013694,2]
[339926107,1728157846466,-151.0,0.00013694,2]
[339926108,1728157846477,-151.0,0.00013694,2]
[339926109,1728157846486,-151.0,0.00013694,2]
[339926110,1728157846496,-185.793994,0.00013694,2]
[339926111,1728157846505,-185.793994,0.00013694,2]
[339926112,1728157846515,-151.0,0.00013694,2]
[339926113,1728157846524,-151.0,0.00013694,2]
[339926114,1728157846533,-151.0,0.00013694,2]
[339926115,1728157846543,-151.0,0.00013694,2]
[339926116,1728157846552,-151.0,0.00013694,2]
[339926117,1728157846561,-151.0,0.00013694,2]
[339926118,1728157846570,-151.0,0.00013694,2]
[339926119,1728157846580,-222.48336,0.00013694,2]
[339926120,1728157846590,-222.48336,0.00013694,2]
[339926121,1728157846599,-151.0,0.00013694,2]
[339926122,1728157846610,-707.661666,0.00013694,2]
[339926123,1728157846622,-151.0,0.00013694,2]
[339926124,1728157846631,-797.896737,0.00013694,2]
[339926125,1728157846642,-797.896737,0.00013694,2]
[339926126,1728157846654,-151.0,0.00013694,2]
[339926127,1728157846664,-151.0,0.00013694,2]
[339926128,1728157846675,-151.0,0.00013694,2]
[339926129,1728157846686,-253.431214,0.00013694,2]
[339926130,1728157846698,-253.431214,0.00013694,2]
[339926131,1728157846709,-151.0,0.00013694,2]
[339926132,1728157846721,-684.142826,0.00013694,2]
[339926133,1728157846732,-220.431002,0.00013694,2]
[339926134,1728157846742,-220.431002,0.00013694,2]
[339926135,1728157846754,-153.800644,0.00013694,2]
[339926136,1728157846766,-151.0,0.00013694,2]
[339926137,1728157846778,-153.800644,0.00013694,2]
[339926138,1728157846787,-259.947184,0.00013694,2]
[339926139,1728157846797,-151.0,0.00013694,2]
[339926140,1728157846806,-151.0,0.00013694,2]
[339926141,1728157846816,-259.947184,0.00013694,2]
[339926142,1728157846825,-997.752839,0.00013694,2]
[339926143,1728157846834,-997.752839,0.00013694,2]
[339926144,1728157846846,-151.0,0.00013694,2]
[339926145,1728157846856,-151.0,0.00013694,2]
[339926146,1728157846866,-151.0,0.00013694,2]
[339926147,1728157846875,-654.818401,0.00013694,2]
[339926148,1728157846885,-654.818401,0.00013694,2]
[339926149,1728157846894,-151.0,0.00013694,2]
[339926150,1728157846904,-151.0,0.00013694,2]
[339926151,1728157846915,-151.0,0.00013694,2]
[339926152,1728157846927,-199.186936,0.00013694,2]
[339926153,1728157846938,-151.0,0.00013694,2]
[339926154,1728157846949,-175.096869,0.00013694,2]
[339926155,1728157846959,-175.096869,0.00013694,2]
[339926156,1728157846971,-212.387041,0.00013694,2]
[339926157,1728157846985,-369.23231,0.00013694,2]
[339926158,1728157846997,-212.387041,0.00013694,2]
[339926159,1728157847008,-369.23231,0.00013694,2]
[339926160,1728157847021,-151.0,0.00013694,2]
[339926161,1728157847034,-535.98537,0.00013694,2]
[339926162,1728157847046,-151.0,0.00013694,2]
[339926163,1728157847056,-535.98537,0.00013694,2]
[339926164,1728157847067,-151.0,0.00013694,2]
[339926165,1728157847079,-162.347387,0.00013694,2]
[339926166,1728157847090,-158.067028,0.00013694,2]
[339926167,1728157847102,-151.0,0.00013694,2]
[339926168,1728157847112,-162.347387,0.00013694,2]
[339926169,1728157847123,-151.0,0.00013694,2]
[339926170,1728157847135,-151.0,0.00013694,2]
[339926171,1728157847149,-196.918011,0.00013694,2]
[339926172,1728157847159,-196.918011,0.00013694,2]
[339926173,1728157847169,-196.82751364,0.00013698,2]
[339926174,1728157847179,-262.72270174,0.00013698,2]
[339926175,1728157847193,-500.0,0.00013698,2]
[339926176,1728157847204,-188.09333367,0.00013698,2]
[339926177,1728157847213,-500.0,0.00013698,2]
[339926178,1728157847223,-500.0,0.00013698,2]
[339926179,1728157847233,-500.0,0.00013698,2]
[339926180,1728157847243,-220.42114159,0.00013698,2]
[339926181,1728157847252,-305.03776594,0.00013698,2]
[339926182,1728157847264,-500.0,0.00013698,2]
[339926183,1728157847275,-500.0,0.00013698,2]
[339926184,1728157847285,-500.0,0.00013698,2]
[339926185,1728157847295,-500.0,0.00013698,2]
[339926186,1728157847304,-508.84837155,0.00013698,2]
[339926187,1728157847314,-500.0,0.00013698,2]
[339926188,1728157847323,-151.0,0.00013698,2]
[339926189,1728157847332,-151.0,0.00013698,2]
[339926190,1728157847342,-151.0,0.00013698,2]
[339926191,1728157847351,-151.0,0.00013698,2]
[339926192,1728157847361,-500.0,0.00013698,2]
[339926193,1728157847370,-500.0,0.00013698,2]
[339926194,1728157847379,-500.0,0.00013698,2]
[339926195,1728157847388,-500.0,0.00013698,2]
[339926196,1728157847397,-500.0,0.00013698,2]
[339926197,1728157847407,-500.0,0.00013698,2]
[339926198,1728157847416,-500.0,0.00013698,2]
[339926199,1728157847426,-500.0,0.00013698,2]
[339926200,1728157847440,-151.0,0.00013698,2]
[339926201,1728157847450,-151.0,0.00013698,2]
[339926202,1728157847459,-151.0,0.00013698,2]
[339926203,1728157847470,-151.0,0.00013698,2]
[339926204,1728157847479,-151.0,0.00013698,2]
[339926205,1728157847489,-151.0,0.00013698,2]
[339926206,1728157847498,-151.0,0.00013698,2]
[339926207,1728157847508,-156.132548,0.00013698,2]
[339926208,1728157847517,-500.0,0.00013698,2]
[339926209,1728157847527,-500.0,0.00013698,2]
[339926210,1728157847536,-500.0,0.00013698,2]
[339926211,1728157847545,-599.43720205,0.00013698,2]
[339926212,1728157847554,-500.0,0.00013698,2]
[339926213,1728157847563,-500.0,0.00013698,2]
[339926214,1728157847572,-194.0955574,0.00013698,2]
[339926215,1728157847582,-500.0,0.00013698,2]
[339926216,1728157847591,-500.0,0.00013698,2]
[339926217,1728157847601,-553.26980654,0.00013698,2]
[339926218,1728157847610,-757.49,0.00013698,2]
[339926219,1728157847620,-500.0,0.00013698,2]
[339926220,1728157847629,-908.05,0.00013698,2]
[339926221,1728157847638,-500.0,0.00013698,2]
[339926222,1728157847647,-500.0,0.00013698,2]
[339926223,1728157847657,-185.793994,0.00013698,2]
[339926224,1728157847667,-185.793994,0.00013698,2]
[339926225,1728157847676,-185.793994,0.00013698,2]
[339926226,1728157847685,-185.793994,0.00013698,2]
[339926227,1728157847695,-377.01880984,0.00013698,2]
[339926228,1728157847704,-185.793994,0.00013698,2]
[339926229,1728157847715,-185.793994,0.00013698,2]
[339926230,1728157847732,-185.793994,0.00013698,2]
[339926231,1728157847742,-500.0,0.00013698,2]
[339926232,1728157847751,-185.793994,0.00013698,2]
[339926233,1728157847761,-185.793994,0.00013698,2]
[339926234,1728157847770,-500.0,0.00013698,2]
[339926235,1728157847779,-500.0,0.00013698,2]
[339926236,1728157847788,-500.0,0.00013698,2]
[339926237,1728157847798,-185.793994,0.00013698,2]
[339926238,1728157847808,-185.793994,0.00013698,2]
[339926239,1728157847818,-185.793994,0.00013698,2]
[339926240,1728157847827,-1620.58,0.00013698,2]
[339926241,1728157847836,-500.0,0.00013698,2]
[339926242,1728157847845,-500.0,0.00013698,2]
[339926243,1728157847855,-609.58,0.00013698,2]
[339926244,1728157847864,-500.0,0.00013698,2]
[339926245,1728157847873,-500.0,0.00013698,2]
[339926246,1728157847882,-500.0,0.00013698,2]
[339926247,1728157847891,-500.0,0.00013698,2]
[339926248,1728157847902,-500.0,0.00013698,2]
[339926249,1728157847912,-500.0,0.00013698,2]
[339926250,1728157847921,-559.19,0.00013698,2]
[339926251,1728157847931,-500.0,0.00013698,2]
[339926252,1728157847940,-500.0,0.00013698,2]
[339926253,1728157847950,-500.0,0.00013698,2]
[339926254,1728157847959,-500.0,0.00013698,2]
[339926255,1728157847969,-500.0,0.00013698,2]
[339926256,1728157847979,-502.19,0.00013698,2]
[339926257,1728157847988,-500.0,0.00013698,2]
[339926258,1728157847998,-221.50355551,0.00013698,2]
[339926259,1728157848008,-500.0,0.00013698,2]
[339926260,1728157848018,-500.0,0.00013698,2]
[339926261,1728157848027,-500.0,0.00013698,2]
[339926262,1728157848037,-500.0,0.00013698,2]
[339926263,1728157848047,-500.0,0.00013698,2]
[339926264,1728157848056,-500.0,0.00013698,2]
[339926265,1728157848066,-500.0,0.00013698,2]
[339926266,1728157848075,-500.0,0.00013698,2]
[339926267,1728157848084,-500.0,0.00013698,2]
[339926268,1728157848094,-500.0,0.00013698,2]
[339926269,1728157848103,-517.34464862,0.00013698,2]
[339926270,1728157848113,-500.0,0.00013698,2]
[339926271,1728157848122,-500.0,0.00013698,2]
[339926272,1728157848131,-998.46,0.00013698,2]
[339926273,1728157848142,-500.0,0.00013698,2]
[339926274,1728157848151,-500.0,0.00013698,2]
[339926275,1728157848161,-500.0,0.00013698,2]
[339926276,1728157848171,-500.0,0.00013698,2]
[339926277,1728157848180,-500.0,0.00013698,2]
[339926278,1728157848190,-500.0,0.00013698,2]
[339926279,1728157848200,-500.0,0.00013698,2]
[339926280,1728157848210,-500.0,0.00013698,2]
[339926281,1728157848225,-500.0,0.00013698,2]
[339926282,1728157848235,-500.0,0.00013698,2]
[339926283,1728157848244,-513.38,0.00013698,2]
[339926284,1728157848253,-591.04,0.00013698,2]
[339926285,1728157848263,-500.0,0.00013698,2]
[339926286,1728157848272,-500.0,0.00013698,2]
[339926287,1728157848282,-500.0,0.00013698,2]
[339926288,1728157848292,-500.0,0.00013698,2]
[339926289,1728157848303,-344.475145,0.00013698,2]
[339926290,1728157848313,-500.0,0.00013698,2]
[339926291,1728157848323,-500.0,0.00013698,2]
[339926292,1728157848332,-532.44,0.00013698,2]
[339926293,1728157848341,-500.0,0.00013698,2]
[339926294,1728157848351,-500.0,0.00013698,2]
[339926295,1728157848360,-376.789034,0.00013698,2]
[339926296,1728157848371,-500.0,0.00013698,2]
[339926297,1728157848381,-500.0,0.00013698,2]
[339926298,1728157848392,-500.0,0.00013698,2]
[339926299,1728157848402,-500.79854033,0.00013698,2]
[339926300,1728157848412,-667.87,0.00013698,2]
[339926301,1728157848421,-500.0,0.00013698,2]
[339926302,1728157848432,-500.0,0.00013698,2]
[339926303,1728157848441,-662.11,0.00013698,2]
[339926304,1728157848452,-151.0,0.00013698,2]
[339926305,1728157848463,-500.0,0.00013698,2]
[339926306,1728157848473,-151.0,0.00013698,2]
[339926307,1728157848483,-500.0,0.00013698,2]
[339926308,1728157848494,-500.0,0.00013698,2]
[339926309,1728157848505,-500.0,0.00013698,2]
[339926310,1728157848514,-312.36620397,0.00013698,2]
[339926311,1728157848524,-500.0,0.00013698,2]
[339926312,1728157848534,-500.0,0.00013698,2]
[339926313,1728157848545,-500.0,0.00013698,2]
[339926314,1728157848555,-500.0,0.00013698,2]
[339926315,1728157848564,-500.0,0.00013698,2]
[339926316,1728157848573,-500.0,0.00013698,2]
[339926317,1728157848583,-500.0,0.00013698,2]
[339926318,1728157848600,-508.20469751,0.00013698,2]
[339926319,1728157848613,-507.28433296,0.00013698,2]
[339926320,1728157848624,-500.0,0.00013698,2]
[339926321,1728157848635,-500.0,0.00013698,2]
[339926322,1728157848647,-500.0,0.00013698,2]
[339926323,1728157848658,-500.0,0.00013698,2]
[339926324,1728157848669,-288.45891134,0.00013698,2]
[339926325,1728157848680,-500.0,0.00013698,2]
[339926326,1728157848691,-500.0,0.00013698,2]
[339926327,1728157848701,-511.44,0.00013698,2]
[339926328,1728157848712,-500.0,0.00013698,2]
[339926329,1728157848722,-500.0,0.00013698,2]
[339926330,1728157848731,-599.88462829,0.00013698,2]
[339926331,1728157848741,-604.7,0.00013698,2]
[339926332,1728157848750,-691.83,0.00013698,2]
[339926333,1728157848761,-500.0,0.00013698,2]
[339926334,1728157848772,-500.0,0.00013698,2]
[339926335,1728157848781,-501.84512181,0.00013698,2]
[339926336,1728157848790,-500.0,0.00013698,2]
[339926337,1728157848801,-500.0,0.00013698,2]
[339926338,1728157848811,-151.0,0.00013698,2]
[339926339,1728157848821,-151.0,0.00013698,2]
[339926340,1728157848830,-151.0,0.00013698,2]
[339926341,1728157848840,-230.28671876,0.00013698,2]
[339926342,1728157848851,-500.0,0.00013698,2]
[339926343,1728157848860,-500.0,0.00013698,2]
[339926344,1728157848871,-500.0,0.00013698,2]
[339926345,1728157848881,-500.0,0.00013698,2]
[339926346,1728157848891,-500.0,0.00013698,2]
[339926347,1728157848901,-500.0,0.00013698,2]
[339926348,1728157848912,-763.46,0.00013698,2]
[339926349,1728157848923,-500.0,0.00013698,2]
[339926350,1728157848933,-500.0,0.00013698,2]
[339926351,1728157848943,-578.42,0.00013698,2]
[339926352,1728157848953,-745.03,0.00013698,2]
[339926353,1728157848964,-510.15086792,0.00013698,2]
[339926354,1728157848974,-807.18,0.00013698,2]
[339926355,1728157848985,-181.743383,0.00013698,2]
[339926356,1728157848995,-691.17,0.00013698,2]
[339926357,1728157849006,-500.0,0.00013698,2]
[339926358,1728157849016,-500.0,0.00013698,2]
[339926359,1728157849028,-500.0,0.00013698,2]
[339926360,1728157849039,-500.0,0.00013698,2]
[339926361,1728157849050,-534.285621,0.00013698,2]
[339926362,1728157849060,-500.0,0.00013698,2]
[339926363,1728157849071,-505.56340065,0.00013698,2]
[339926364,1728157849080,-500.0,0.00013698,2]
[339926365,1728157849092,-500.0,0.00013698,2]
[339926366,1728157849102,-500.0,0.00013698,2]
[339926367,1728157849113,-500.0,0.00013698,2]
[339926368,1728157849125,-500.0,0.00013698,2]
[339926369,1728157849135,-500.0,0.00013698,2]
[339926370,1728157849147,-500.0,0.00013698,2]
[339926371,1728157849158,-500.0,0.00013698,2]
[339926372,1728157849169,-500.0,0.00013698,2]
[339926373,1728157849180,-500.0,0.00013698,2]
[339926374,1728157849190,-500.0,0.00013698,2]
[339926375,1728157849202,-500.0,0.00013698,2]
[339926376,1728157849213,-500.0,0.00013698,2]
[339926377,1728157849223,-301.19967272,0.00013698,2]
[339926378,1728157849235,-781.43,0.00013698,2]
[339926379,1728157849244,-500.0,0.00013698,2]
[339926380,1728157849254,-500.0,0.00013698,2]
[339926381,1728157849264,-500.0,0.00013698,2]
[339926382,1728157849274,-500.0,0.00013698,2]
[339926383,1728157849284,-500.0,0.00013698,2]
[339926384,1728157849295,-500.0,0.00013698,2]
[339926385,1728157849305,-500.0,0.00013698,2]
[339926386,1728157849316,-500.0,0.00013698,2]
[339926387,1728157849326,-500.0,0.00013698,2]
[339926388,1728157849337,-500.0,0.00013698,2]
[339926389,1728157849348,-500.0,0.00013698,2]
[339926390,1728157849358,-559.19,0.00013698,2]
[339926391,1728157849368,-500.0,0.00013698,2]
[339926392,1728157849378,-500.0,0.00013698,2]
[339926393,1728157849389,-798.18,0.00013698,2]
[339926394,1728157849398,-500.0,0.00013698,2]
[339926395,1728157849409,-500.0,0.00013698,2]
[339926396,1728157849419,-500.0,0.00013698,2]
[339926397,1728157849428,-500.0,0.00013698,2]
[339926398,1728157849438,-503.10630611,0.00013698,2]
[339926399,1728157849448,-500.0,0.00013698,2]
[339926400,1728157849660,-500.0,0.00013698,2]
[339926401,1728157849670,-500.0,0.00013698,2]
[339926402,1728157849680,-500.0,0.00013698,2]
[339926403,1728157849690,-500.0,0.00013698,2]
[339926404,1728157849699,-500.0,0.00013698,2]
[339926405,1728157849709,-662.82,0.00013698,2]
[339926406,1728157849719,-500.0,0.00013698,2]
[339926407,1728157849728,-500.0,0.00013698,2]
[339926408,1728157849737,-500.0,0.00013698,2]
[339926409,1728157849747,-151.0,0.00013698,2]
[339926410,1728157849756,-153.084359,0.00013698,2]
[339926411,1728157849766,-500.0,0.00013698,2]
[339926412,1728157849776,-500.0,0.00013698,2]
[339926413,1728157849786,-500.0,0.00013698,2]
[339926414,1728157849795,-836.88,0.00013698,2]
[339926415,1728157849807,-500.0,0.00013698,2]
[339926416,1728157849817,-500.0,0.00013698,2]
[339926417,1728157849826,-500.0,0.00013698,2]
[339926418,1728157849837,-500.0,0.00013698,2]
[339926419,1728157849846,-500.0,0.00013698,2]
[339926420,1728157849855,-500.0,0.00013698,2]
[339926421,1728157849865,-500.0,0.00013698,2]
[339926422,1728157849875,-596.55,0.00013698,2]
[339926423,1728157849885,-500.0,0.00013698,2]
[339926424,1728157849897,-500.0,0.00013698,2]
[339926425,1728157849906,-371.21939936,0.00013698,2]
[339926464,1728159031876,-300.0,0.00010356,2]
[339926465,1728159031886,-300.0,0.00010356,2]
[339926466,1728159031895,-24900.0,0.00010357,2]
[339926467,1728159031905,-817.0633825,0.00010708,2]
[339926468,1728159031914,-1001.3926601,0.00010783,2]
[339926469,1728159031924,-756.3703104,0.00010852,2]
[339926470,1728159031933,-822.80471257,0.00010881,2]
[339926471,1728159031942,-3000.0,0.00010881,2]
[339926472,1728159031952,-413.5890737,0.00010966,2]
[339926473,1728159031962,-393.9092584,0.00010987,2]
[339926474,1728159031972,-158.975563,0.00011069,2]
[339926475,1728159031981,-158.975563,0.00011111,2]